fUSD/lending_fUSD_20260217
["ID","MTS","AMOUNT","RATE_DAILY","PERIOD"]
[405801405,1771324246011,-500.0,0.00013698,2]
[405801406,1771324246020,-500.0,0.00013698,2]
[405801407,1771324246029,-500.0,0.00013698,2]
[405801408,1771324246039,-500.0,0.00013698,2]
[405801409,1771324246049,-500.0,0.00013698,2]
[405801410,1771324246058,-500.0,0.00013698,2]
[405801411,1771324246068,-500.0,0.00013698,2]
[405801412,1771324246077,-500.0,0.00013698,2]
[405801413,1771324246087,-535.55684817,0.00013698,2]
[405801414,1771324246097,-500.0,0.00013698,2]
[405801415,1771324246108,-500.0,0.00013698,2]
[405801416,1771324246118,-500.0,0.00013698,2]
[405801417,1771324246128,-639.90682726,0.00013698,2]
[405801418,1771324246137,-506.79858148,0.00013698,2]
[405801419,1771324246146,-500.0,0.00013698,2]
[405801420,1771324246157,-500.0,0.00013698,2]
[405801421,1771324246167,-500.0,0.00013698,2]
[405801422,1771324246176,-500.0,0.00013698,2]
[405801423,1771324246185,-500.0,0.00013698,2]
[405801424,1771324246195,-500.0,0.00013698,2]
[405801425,1771324246204,-500.0,0.00013698,2]
[405801426,1771324246214,-500.0,0.00013698,2]
[405801427,1771324246223,-500.0,0.00013698,2]
[405801428,1771324246234,-500.0,0.00013698,2]
[405801429,1771324246244,-391.46615766,0.00013698,2]
[405801430,1771324246254,-500.0,0.00013698,2]
[405801431,1771324246264,-500.0,0.00013698,2]
[405801432,1771324246278,-500.0,0.00013698,2]
[405801433,1771324246287,-500.0,0.00013698,2]
[405801434,1771324246297,-500.0,0.00013698,2]
[405801435,1771324246307,-500.0,0.00013698,2]
[405801436,1771324246319,-500.0,0.00013698,2]
[405801437,1771324246329,-500.0,0.00013698,2]
[405801438,1771324246343,-500.0,0.00013698,2]
[405801439,1771324246353,-500.0,0.00013698,2]
[405801440,1771324246363,-500.0,0.00013698,2]
[405801441,1771324246374,-500.0,0.00013698,2]
[405801442,1771324246384,-500.0,0.00013698,2]
[405801443,1771324246393,-500.0,0.00013698,2]
[405801444,1771324246403,-378.40619195,0.00013698,2]
[405801445,1771324246412,-349.69131006,0.00013698,2]
[405801446,1771324246422,-500.0,0.00013698,2]
[405801447,1771324246431,-500.0,0.00013698,2]
[405801448,1771324246441,-500.0,0.00013698,2]
[405801449,1771324246451,-500.0,0.00013698,2]
[405801450,1771324246460,-511.5660924,0.00013698,2]
[405801451,1771324246469,-529.40507312,0.00013698,2]
[405801452,1771324246479,-200.0,0.00013699,2]
[405801453,1771324246489,-712.99,0.00013699,2]
[405801454,1771324246502,-151.02878078,0.00013699,2]
[405801455,1771324246518,-10272.10520533,0.00013739,2]
[405801456,1771324246527,-151.0,0.00013739,2]
[405801457,1771324246537,-745.65223616,0.00013739,2]
[405801458,1771324246547,-500.0,0.00013788,2]
[405801459,1771324246556,-2125.36664557,0.00013794,2]
[405801460,1771324246566,-151.0,0.00013794,2]
[405801461,1771324246576,-773.2413689,0.00013794,2]
[405801462,1771324246586,-151.0,0.00013849,2]
[405801463,1771324246595,-801.85129955,0.00013849,2]
[405801464,1771324246604,-151.0,0.00013904,2]
[405801465,1771324246614,-831.51979763,0.00013904,2]
[405801466,1771324246623,-151.0,0.00013959,2]
[405801467,1771324246633,-862.28603014,0.00013959,2]
[405801468,1771324246643,-151.0,0.00014014,2]
[405801469,1771324246652,-894.19061326,0.00014014,2]
[405801470,1771324246662,-500.0,0.00014062,2]
[405801471,1771324246671,-846.3153877,0.00014067,2]
[405801472,1771324246681,-151.0,0.00014069,2]
[405801473,1771324246691,-927.27566595,0.00014069,2]
[405801474,1771324246701,-27737.69540553,0.00014071,2]
[405801475,1771324246711,-8685.08379471,0.00014071,2]
[405801476,1771324246720,-151.0,0.00014124,2]
[405801477,1771324246730,-961.58486559,0.00014124,2]
[405801478,1771324246740,-520.860422,0.00014136,7]
[405801479,1771324246750,-173.57638878,0.00014151,2]
[405801480,1771324246759,-160.0,0.00014151,2]
[405801481,1771324246769,-9035.0,0.00014169,2]
[405801482,1771324246779,-210.0,0.00014172,2]
[405801483,1771324246788,-527.32864652,0.00014177,2]
[405801484,1771324246797,-217.15233878,0.00014177,2]
[405801485,1771324246807,-200.0,0.00014177,2]
[405801486,1771324246817,-151.0,0.00014179,2]
[405801487,1771324246826,-997.16350561,0.00014179,2]
[405801488,1771324246835,-151.0,0.00014234,2]
[405801489,1771324246843,-151.0,0.00014289,2]
[405801490,1771324246852,-500.0,0.00014336,2]
[405801491,1771324246862,-151.0,0.00014344,2]
[405801492,1771324246871,-7658.84032483,0.0001439,2]
[405801493,1771324246880,-267.05598539,0.00014399,2]
[405801494,1771324246888,-325.66480715,0.0001461,2]
[405801495,1771324246898,-151.0,0.00014634,2]
[405801496,1771324246907,-151.0,0.00014634,2]
[405801497,1771324246916,-500.0,0.00014708,2]
[405801498,1771324246925,-237.28842339,0.00014708,2]
[405801499,1771324246933,-500.0,0.00014708,2]
[405801500,1771324246942,-225.18697532,0.00014725,2]
[405801501,1771324246951,-500.0,0.00014763,2]
[405801502,1771324246960,-500.0,0.00014763,2]
[405801503,1771324246969,-220.15883999,0.00014818,2]
[405801504,1771324246979,-500.0,0.00014818,2]
[405801505,1771324246989,-27737.69540553,0.00014818,2]
[405801506,1771324246998,-8685.08379471,0.00014818,2]
[405801507,1771324247008,-500.0,0.00014872,2]
[405801508,1771324247018,-915.21,0.00014899,2]
[405801509,1771324247027,-915.21,0.00014899,2]
[405801510,1771324247036,-500.0,0.00014899,2]
[405801511,1771324247046,-286.9609652,0.00014899,2]
[405801512,1771324247055,-333177.4477,0.000149,2]
[405801513,1771324247066,-1783.60803,0.000149,2]
[405801514,1771324247075,-1783.60803,0.000149,2]
[405801515,1771324247085,-1783.60803,0.000149,2]
[405801516,1771324247094,-1783.60803,0.000149,2]
[405801517,1771324247103,-167.064397,0.000149,2]
[405801518,1771324247113,-167.064397,0.000149,2]
[405801519,1771324247124,-167.064397,0.000149,2]
[405801520,1771324247134,-167.064397,0.000149,2]
[405801521,1771324247144,-1000.0,0.000149,2]
[405801522,1771324247154,-1069.171485,0.000149,2]
[405801523,1771324247165,-82358.0,0.000149,2]
[405801524,1771324247176,-151.0,0.000149,2]
[405801525,1771324247185,-250.0,0.00014918,8]
[405801526,1771324247195,-250.0,0.00014918,8]
[405801527,1771324247205,-250.0,0.00014918,8]
[405801528,1771324247215,-250.0,0.00014918,8]
[405801529,1771324247224,-250.0,0.00014918,8]
[405801530,1771324247234,-250.0,0.00014918,8]
[405801531,1771324247244,-250.0,0.00014918,8]
[405801532,1771324247254,-250.0,0.00014918,8]
[405801533,1771324247264,-250.0,0.00014918,8]
[405801534,1771324247278,-250.0,0.00014918,8]
[405801535,1771324247288,-305.0,0.00014918,8]
[405801536,1771324247298,-500.0,0.00014927,2]
[405801537,1771324247307,-500.0,0.00014982,2]
[405801538,1771324247319,-160.32510575,0.00014998,2]
[405801539,1771324247329,-168.3888056,0.00014998,2]
[405801540,1771324247417,-1000.0,0.00015,10]
[405801541,1771324247428,-1000.0,0.00015,10]
[405801542,1771324247439,-1000.0,0.00015,10]
[405801543,1771324247450,-1000.0,0.00015,10]
[405801544,1771324247460,-1000.0,0.00015,10]
[405801545,1771324247470,-1000.0,0.00015,10]
[405801546,1771324247481,-1000.0,0.00015,10]
[405801547,1771324247492,-1000.0,0.00015,10]
[405801548,1771324247502,-1000.0,0.00015,10]
[405801549,1771324247512,-1000.0,0.00015,10]
[405801550,1771324247521,-1000.0,0.00015,10]
[405801551,1771324247532,-1000.0,0.00015,10]
[405801552,1771324247542,-1000.0,0.00015,10]
[405801553,1771324247551,-1000.0,0.00015,10]
[405801554,1771324247561,-1000.0,0.00015,10]
[405801555,1771324247573,-1000.0,0.00015,10]
[405801556,1771324247584,-1000.0,0.00015,10]
[405801557,1771324247594,-1000.0,0.00015,10]
[405801558,1771324247605,-1000.0,0.00015,10]
[405801559,1771324247615,-1000.0,0.00015,10]
[405801560,1771324247627,-1000.0,0.00015,10]
[405801561,1771324247637,-1000.0,0.00015,10]
[405801562,1771324247647,-1000.0,0.00015,10]
[405801563,1771324247657,-1000.0,0.00015,10]
[405801564,1771324247667,-1000.0,0.00015,10]
[405801565,1771324247677,-1000.0,0.00015,10]
[405801566,1771324247687,-1000.0,0.00015,10]
[405801567,1771324247696,-1000.0,0.00015,10]
[405801568,1771324247706,-1000.0,0.00015,10]
[405801569,1771324247715,-1000.0,0.00015,10]
[405801570,1771324247725,-1000.0,0.00015,10]
[405801571,1771324247735,-1000.0,0.00015,10]
[405801572,1771324247746,-804.88,0.00015,10]
[405801573,1771324247755,-250.0,0.00015,2]
[405801574,1771324247765,-250.0,0.00015,8]
[405801575,1771324247775,-250.0,0.00015,8]
[405801576,1771324247784,-250.0,0.00015,8]
[405801577,1771324247794,-250.0,0.00015,8]
[405801578,1771324247803,-250.0,0.00015,8]
[405801579,1771324247812,-250.0,0.00015,8]
[405801580,1771324247822,-183.0,0.00015,8]
[405801581,1771324247831,-306.51422453,0.00015,2]
[405801582,1771324247841,-2055.50045313,0.00015,2]
[405801583,1771324247850,-8002.23365242,0.00015,2]
[405801584,1771324247860,-151.76907395,0.00015,2]
[405801585,1771324247870,-13487.0,0.00015,2]
[405801586,1771324247880,-500.0,0.00015037,2]
[405801587,1771324247890,-776.66,0.00015068,2]
[405801588,1771324247899,-457.741827,0.00015068,2]
[405801589,1771324247909,-457.741827,0.00015068,2]
[405801590,1771324247919,-457.741827,0.00015068,2]
[405801591,1771324247928,-457.741827,0.00015068,2]
[405801592,1771324247937,-5814.85261277,0.00015071,2]
[405801593,1771324247946,-250.0,0.00015082,8]
[405801594,1771324247955,-250.0,0.00015082,8]
[405801595,1771324247965,-250.0,0.00015082,8]
[405801596,1771324247974,-372.0,0.00015082,8]
[405801597,1771324247984,-500.0,0.00015092,2]
[405801598,1771324247994,-337.87,0.000151,2]
[405801599,1771324248003,-13457.98,0.00015117,2]
[405801600,1771324248012,-500.0,0.00015146,2]
[405801601,1771324248023,-500.0,0.00015201,2]
[405801602,1771324248033,-500.0,0.00015256,2]
[405801603,1771324248044,-266.72169876,0.00015273,2]
[405801604,1771324248055,-1517.64,0.000153,2]
[405801605,1771324248066,-5530.0,0.000153,3]
[405801606,1771324248076,-500.0,0.00015311,2]
[405801607,1771324248086,-1000.0,0.00015334,7]
[405801608,1771324248097,-832.04,0.00015342,2]
[405801609,1771324248107,-224.65460803,0.00015366,2]
[405801610,1771324248118,-509.61038486,0.000154,2]
[405801611,1771324248128,-241.70774661,0.000155,2]
[405801612,1771324248137,-156.268,0.00015537,2]
[405801613,1771324248147,-12649.0,0.00015586,2]
[405801614,1771324248157,-5530.0,0.000156,5]
[405801615,1771324248167,-391.49,0.0001568,2]
[405801616,1771324248180,-151.0,0.00015727,2]
[405801617,1771324248191,-1000.0,0.00015731,2]
[405801618,1771324248202,-2245.73805852,0.00015807,2]
[405801619,1771324248213,-500.0,0.00015886,2]
[405801620,1771324248223,-1015.72,0.00015886,2]
[405801621,1771324248232,-2811.86,0.00015924,2]
[405801622,1771324248241,-239.226,0.00015924,2]
[405801623,1771324248250,-484.11558281,0.00015955,2]
[405801624,1771324248260,-5000.0,0.0001596,2]
[405801625,1771324248270,-418.83903334,0.00016,2]
[405801626,1771324248281,-152.85835457,0.00016,2]
[405801627,1771324248291,-276.734435,0.00016,2]
[405801628,1771324248299,-7910.59,0.00016116,2]
[405801629,1771324248309,-1136.19827536,0.00016176,2]
[405801630,1771324248319,-151.0,0.00016197,2]
[405801631,1771324248328,-152515.91588409,0.000162,5]
[405801632,1771324248337,-189.36637923,0.00016322,2]
[405801633,1771324248347,-200.0,0.0001634,2]
[405801634,1771324248357,-484.11558281,0.00016354,2]
[405801635,1771324248367,-168.19115038,0.00016367,2]
[405801636,1771324248376,-747.8093786,0.00016368,2]
[405801637,1771324248387,-599.60298507,0.00016368,2]
[405801638,1771324248396,-15296.93137855,0.00016386,2]
[405801639,1771324248406,-151.0,0.00016438,2]
[405801640,1771324248416,-3519.74,0.00016448,2]
[405801641,1771324248426,-2452.0,0.00016448,2]
[405801642,1771324248436,-189.36637923,0.00016483,2]
[405801643,1771324248445,-5814.85261277,0.00016486,2]
[405801644,1771324248456,-189.36637923,0.00016645,2]
[405801645,1771324248466,-9917.64356668,0.00016745,2]
[405801646,1771324248476,-151.0,0.00016745,2]
[405801647,1771324248486,-935.75302246,0.0001699,2]
[405801648,1771324248496,-500.0,0.00016998,2]
[405801649,1771324248506,-1015.72,0.00016998,2]
[405801650,1771324248516,-300.0,0.00016999,2]
[405801651,1771324248527,-666.0,0.00016999,2]
[405801652,1771324248537,-502.75243677,0.00016999,2]
[405801653,1771324248547,-300.0,0.00017,2]
[405801654,1771324248557,-503.03810445,0.00017,5]
[405801655,1771324248567,-722096.52522804,0.00017,2]
[405801656,1771324248578,-457.741827,0.00017,2]
[405801657,1771324248588,-457.741827,0.00017,2]
[405801658,1771324248598,-457.741827,0.00017,2]
[405801659,1771324248608,-457.741827,0.00017,2]
[405801660,1771324248618,-151.000017,0.00017,2]
[405801661,1771324248629,-153.344252,0.00017,2]
[405801662,1771324248640,-1000.0,0.00017045,2]
[405801663,1771324248651,-1000.0,0.00017045,2]
[405801664,1771324248661,-1000.0,0.00017045,2]
[405801665,1771324248673,-1000.0,0.00017045,2]
[405801666,1771324248685,-1000.0,0.00017045,2]
[405801667,1771324248695,-350.0,0.00017105,2]
[405801668,1771324248707,-350.0,0.00017138,2]
[405801669,1771324248716,-14964.0,0.00017144,2]
[405801670,1771324248726,-350.0,0.00017375,2]
[405801671,1771324248736,-915.21,0.00017447,2]
[405801672,1771324248746,-150.248,0.00017449,2]
[405801673,1771324248755,-1302.253,0.00017449,2]
[405801674,1771324248766,-1224.627,0.00017449,2]
[405801675,1771324248776,-317.626651,0.00017466,7]
[405801676,1771324248788,-689.226358,0.00017628,7]
[405801677,1771324248799,-861.1075,0.00017628,7]
[405801678,1771324248810,-6001.36620396,0.0001764,2]
[405801679,1771324248821,-350.0,0.00017645,2]
[405801680,1771324248833,-550.98049433,0.00017667,7]
[405801681,1771324248845,-1000.0,0.00017698,2]
[405801682,1771324248856,-784.32813885,0.000177,2]
[405801683,1771324248866,-403.0,0.000177,5]
[405801684,1771324248877,-2004.41635969,0.0001773,2]
[405801685,1771324248890,-260.99,0.00017769,2]
[405801686,1771324248901,-160.0,0.000178,7]
[405801687,1771324248912,-444.64,0.00017808,2]
[405801688,1771324248923,-500.0,0.00017808,2]
[405801689,1771324248934,-500.0,0.00017808,2]
[405801690,1771324248944,-500.0,0.00017808,2]
[405801691,1771324248953,-595.71508911,0.00017808,2]
[405801692,1771324248963,-500.0,0.00017808,2]
[405801693,1771324248974,-500.0,0.00017808,2]
[405801694,1771324248985,-500.0,0.00017808,2]
[405801695,1771324248996,-500.0,0.00017808,2]
[405801696,1771324249008,-500.0,0.00017808,2]
[405801697,1771324249018,-250.0,0.00017808,20]
[405801698,1771324249027,-250.0,0.00017808,20]
[405801699,1771324249037,-250.0,0.00017808,20]
[405801700,1771324249048,-250.0,0.00017808,20]
[405801701,1771324249059,-250.0,0.00017808,20]
[405801702,1771324249070,-250.0,0.00017808,20]
[405801703,1771324249080,-250.0,0.00017808,20]
[405801704,1771324249090,-250.0,0.00017808,20]
[405801705,1771324249100,-250.0,0.00017808,20]
[405801706,1771324249111,-250.0,0.00017808,20]
[405801707,1771324249121,-250.0,0.00017808,20]
[405801708,1771324249131,-250.0,0.00017808,20]
[405801709,1771324249141,-250.0,0.00017808,20]
[405801710,1771324249152,-250.0,0.00017808,20]
[405801711,1771324249162,-250.0,0.00017808,20]
[405801712,1771324249172,-211.316222,0.00017808,20]
[405801713,1771324249182,-151.192731,0.00017808,2]
[405801714,1771324249191,-151.192731,0.00017808,2]
[405801715,1771324249201,-151.192731,0.00017808,2]
[405801716,1771324249211,-151.192731,0.00017808,2]
[405801717,1771324249220,-151.192731,0.00017808,2]
[405801718,1771324249230,-151.192731,0.00017808,2]
[405801719,1771324249240,-151.192731,0.00017808,2]
[405801720,1771324249249,-151.192731,0.00017808,2]
[405801721,1771324249259,-800.0,0.00017808,2]
[405801722,1771324249268,-1059.62131,0.0001782,2]
[405801723,1771324249281,-1059.62132,0.0001782,2]
[405801724,1771324249292,-7997.704227,0.00017837,7]
[405801725,1771324249301,-260.99,0.00017839,2]
[405801726,1771324249311,-200.0,0.00017855,2]
[405801727,1771324249322,-200.0,0.00017856,2]
[405801728,1771324249331,-200.0,0.00017856,2]
[405801729,1771324249340,-151.0,0.00017856,2]
[405801730,1771324249352,-157.404271,0.00017856,2]
[405801731,1771324249362,-157.404271,0.00017856,2]
[405801732,1771324249372,-157.404271,0.00017856,2]
[405801733,1771324249383,-157.404271,0.00017856,2]
[405801734,1771324249393,-1004.12697823,0.0001786,2]
[405801735,1771324249403,-1576.69293966,0.00017861,2]
[405801736,1771324249413,-500.0,0.00017899,2]
[405801737,1771324249423,-500.0,0.00017899,2]
[405801738,1771324249434,-500.0,0.00017899,2]
[405801739,1771324249444,-500.0,0.00017899,2]
[405801740,1771324249454,-500.0,0.00017899,2]
[405801741,1771324249465,-500.0,0.00017899,2]
[405801742,1771324249476,-300.0,0.00017899,2]
[405801743,1771324249486,-666.0,0.00017899,2]
[405801744,1771324249497,-3253.25062368,0.000179,2]
[405801745,1771324249508,-32850.4601,0.000179,2]
[405801746,1771324249518,-1000.0,0.000179,2]
[405801747,1771324249530,-4587.476,0.000179,2]
[405801748,1771324249540,-5008.1800114,0.000179,3]
[405801749,1771324249551,-2555.4951848,0.000179,5]
[405801750,1771324249561,-6669.47583205,0.000179,2]
[405801751,1771324249572,-191.02133115,0.000179,2]
[405801752,1771324249582,-5814.85261277,0.000179,2]
[405801753,1771324249593,-500.0,0.000179,2]
[405801754,1771324249604,-500.0,0.000179,2]
[405801755,1771324249615,-500.0,0.000179,2]
[405801756,1771324249625,-500.0,0.000179,2]
[405801757,1771324249635,-164.78831149,0.000179,2]
[405801758,1771324249645,-260.99,0.0001791,2]
[405801759,1771324249655,-500.0,0.00017918,2]
[405801760,1771324249666,-500.0,0.00017918,2]
[405801761,1771324249676,-500.0,0.00017918,2]
[405801762,1771324249686,-500.0,0.00017918,2]
[405801763,1771324249697,-500.0,0.00017918,2]
[405801764,1771324249708,-500.0,0.00017918,2]
[405801765,1771324249718,-500.0,0.00017918,2]
[405801766,1771324249731,-500.0,0.00017918,2]
[405801767,1771324249745,-207.0,0.00017918,2]
[405801768,1771324249758,-915.21,0.0001796,2]
[405801769,1771324249770,-915.21,0.0001796,2]
[405801770,1771324249781,-915.21,0.0001796,2]
[405801771,1771324249792,-915.21,0.0001796,2]
[405801772,1771324249804,-915.2263384,0.0001796,2]
[405801773,1771324249815,-300.0,0.0001796,2]
[405801774,1771324249825,-666.0,0.0001796,2]
[405801775,1771324249836,-26465.9221682,0.00017961,2]
[405801776,1771324249847,-645248.992974,0.00017961,2]
[405801777,1771324249858,-151.0,0.00017961,2]
[405801778,1771324249868,-151.0,0.00017961,2]
[405801779,1771324249877,-153.227768,0.00017961,2]
[405801780,1771324249889,-1783.60803,0.00017961,2]
[405801781,1771324249900,-1783.60803,0.00017961,2]
[405801782,1771324249910,-1783.60803,0.00017961,2]
[405801783,1771324249919,-1783.60803,0.00017961,2]
[405801784,1771324249930,-167.064397,0.00017961,2]
[405801785,1771324249940,-167.064397,0.00017961,2]
[405801786,1771324249953,-167.064397,0.00017961,2]
[405801787,1771324249964,-167.064397,0.00017961,2]
[405801788,1771324249975,-504.09468333,0.00017973,2]
[405801789,1771324249988,-500.0,0.00017973,2]
[405801790,1771324250000,-573.45760824,0.00017973,2]
[405801791,1771324250011,-616.27940406,0.00017973,2]
[405801792,1771324250023,-500.99019732,0.00017973,2]
[405801793,1771324250035,-508.22453373,0.00017973,2]
[405801794,1771324250044,-500.0,0.00017973,2]
[405801795,1771324250055,-503.2366262,0.00017973,2]
[405801796,1771324250066,-501.35605949,0.00017973,2]
[405801797,1771324250077,-500.0,0.00017973,2]
[405801798,1771324250087,-588.14229004,0.00017973,2]
[405801799,1771324250098,-310.16973746,0.00017973,2]
[405801800,1771324250108,-502.37992604,0.00017973,2]
[405801801,1771324250119,-504.49684223,0.00017973,2]
[405801802,1771324250131,-500.0,0.00017973,2]
[405801803,1771324250142,-500.0,0.00017973,2]
[405801804,1771324250154,-509.85751715,0.00017973,2]
[405801805,1771324250166,-501.59728131,0.00017973,2]
[405801806,1771324250177,-436.04334629,0.00017973,2]
[405801807,1771324250189,-500.0,0.00017973,2]
[405801808,1771324250202,-163.14629325,0.00017973,2]
[405801809,1771324250213,-500.0,0.00017973,2]
[405801810,1771324250225,-500.0,0.00017973,2]
[405801811,1771324250236,-500.0,0.00017973,2]
[405801812,1771324250249,-500.67013055,0.00017973,2]
[405801813,1771324250260,-502.80271569,0.00017973,2]
[405801814,1771324250275,-504.66274009,0.00017973,2]
[405801815,1771324250288,-501.78719611,0.00017973,2]
[405801816,1771324250300,-500.60659592,0.00017973,2]
[405801817,1771324250311,-500.0,0.00017973,2]
[405801818,1771324250321,-501.06962982,0.00017973,2]
[405801819,1771324250331,-500.0,0.00017973,2]
[405801820,1771324250342,-168.45138887,0.00017973,2]
[405801821,1771324250355,-500.0,0.00017981,2]
[405801822,1771324250366,-1015.72,0.00017981,2]
[405801823,1771324250378,-947.1253165,0.00017982,2]
[405801824,1771324250390,-151.0,0.00017989,2]
[405801825,1771324250402,-289.007678,0.00017989,2]
[405801826,1771324250416,-500.0,0.00017998,2]
[405801827,1771324250428,-1015.72,0.00017998,2]
[405801828,1771324250440,-419.66,0.00017999,2]
[405801829,1771324250450,-300.0,0.00017999,2]
[405801830,1771324250464,-666.0,0.00017999,2]
[405801831,1771324250474,-596.80603134,0.00017999,2]
[405801832,1771324250485,-1015.72,0.00017999,2]
[405801833,1771324250497,-1015.72,0.00017999,2]
[405801834,1771324250508,-1015.72,0.00017999,2]
[405801835,1771324250520,-1015.72,0.00017999,2]
[405801836,1771324250532,-1015.72,0.00017999,2]
[405801837,1771324250544,-1015.84,0.00017999,2]
[405801838,1771324250555,-500.0,0.00017999,2]
[405801839,1771324250566,-161.76553767,0.00017999,2]
[405801840,1771324250577,-300.0,0.00017999,2]
[405801841,1771324250588,-666.0,0.00017999,2]
[405801842,1771324250599,-500.0,0.00017999,2]
[405801843,1771324250611,-500.0,0.00017999,2]
[405801844,1771324250621,-500.0,0.00017999,2]
[405801845,1771324250632,-500.0,0.00017999,2]
[405801846,1771324250643,-500.0,0.00017999,2]
[405801847,1771324250655,-500.0,0.00017999,2]
[405801848,1771324250667,-500.0,0.00017999,2]
[405801849,1771324250677,-500.0,0.00017999,2]
[405801850,1771324250689,-388.47570654,0.00017999,2]
[405801851,1771324250702,-500.0,0.00017999,2]
[405801852,1771324250717,-500.0,0.00017999,2]
[405801853,1771324250730,-500.0,0.00017999,2]
[405801854,1771324250741,-500.0,0.00017999,2]
[405801855,1771324250751,-500.0,0.00017999,2]
[405801856,1771324250763,-500.0,0.00017999,2]
[405801857,1771324250773,-500.0,0.00017999,2]
[405801858,1771324250783,-197.6651859,0.00017999,2]
[405801859,1771324250793,-500.0,0.00017999,2]
[405801860,1771324250803,-500.0,0.00017999,2]
[405801861,1771324250814,-500.0,0.00017999,2]
[405801862,1771324250824,-505.24249427,0.00017999,2]
[405801863,1771324250835,-150.0,0.00017999,2]
[405801864,1771324250845,-150.0,0.00017999,2]
[405801865,1771324250857,-269.76817122,0.00017999,2]
[405801866,1771324250869,-28610.11146738,0.00017999,2]
[405801867,1771324250879,-3718898.77919813,0.00018,2]
[405801868,1771324251758,-7043.0,0.00018,2]
[405801869,1771324251781,-105327.569193,0.00018,2]
[405801870,1771324253653,-5973.0,0.00016448,2]
[405801871,1771324253664,-262495.09689943,0.00018,2]
[405801872,1771324253746,-40.28296803,0.00010523,2]
[405801873,1771324254136,-703.47,0.00010523,2]
[405801874,1771324254356,-128.24703197,0.00010523,2]
[405801875,1771324254367,-872.0,0.00010577,2]
[405801876,1771324254378,-887.15179644,0.00010632,2]
[405801877,1771324254388,-1517.60117159,0.00018,2]
[405801878,1771324254405,-32015.11029663,0.00018,2]
[405801879,1771324254417,-22774.645,0.00018,2]
[405801880,1771324254429,-78124.86432756,0.00018,2]
[405801881,1771324254441,-3836.6450342,0.00018,2]
[405801882,1771324254453,-22725.17217,0.00018,2]
[405801883,1771324254466,-4933.45000005,0.00018,2]
[405801884,1771324254478,-19366.05,0.00018,2]
[405801885,1771324254490,-2565.3,0.00018,2]
[405801886,1771324254502,-1142.0,0.00018,2]
[405801887,1771324254515,-2595.3,0.00018,2]
[405801888,1771324254527,-1721.6,0.00018,2]
[405801889,1771324255766,-3252.12528816,0.00018,2]
[405801890,1771324256436,261.66035035,7.998e-05,2]
[405801912,1771324349135,9738.34964965,7.999e-05,2]
[405801913,1771324349158,10000.01,7.999e-05,2]
[405801914,1771324349182,10000.01,7.999e-05,2]
[405801915,1771324349205,10000.01,7.999e-05,2]
[405801916,1771324349231,10000.01,7.999e-05,2]
[405801917,1771324349256,10000.01,7.999e-05,2]
[405801918,1771324349280,10000.01,7.999e-05,2]
[405801919,1771324349308,10000.01,7.999e-05,2]
[405801920,1771324349335,10000.01,7.999e-05,2]
[405801921,1771324349364,10000.01,7.999e-05,2]
[405801922,1771324381606,300.0,7.998e-05,2]
[405801923,1771324382707,150.0,7.998e-05,2]
[405801924,1771324441402,300.0,7.998e-05,2]
[405801925,1771324486607,500.0,7.998e-05,2]